bitfinex/quotes_BTCUSD_20240701
["timestamp","ask_amount","ask_price","bid_price","bid_amount"]
[1719843877591,1.13030943,62856.0,62855.0,0.01]
[1719843877796,1.14030943,62856.0,62855.0,0.01]
[1719843877991,1.13030943,62856.0,62855.0,0.01]
[1719843878413,1.14030943,62856.0,62855.0,0.01]
[1719843878613,1.13030943,62856.0,62855.0,0.01]
[1719843879587,0.81212243,62856.0,62855.0,0.01]
[1719843879960,1.13030943,62856.0,62855.0,0.01]
[1719843880164,0.17574843,62856.0,62855.0,0.01]
[1719843880392,0.01068411,62856.0,62855.0,0.01]
[1719843880601,0.16977711,62856.0,62855.0,0.0192758]
[1719843880796,0.17574843,62856.0,62855.0,0.0192758]
[1719843881272,0.17574843,62856.0,62855.0,0.18161478]
[1719843881273,0.01068411,62856.0,62855.0,0.18161478]
[1719843881501,0.01068411,62856.0,62855.0,0.55596939]
[1719843881818,0.01068411,62856.0,62855.0,0.8741599]
[1719843882248,0.01068411,62856.0,62855.0,1.5205439]
[1719843882475,0.001,62856.0,62855.0,2.1244359]
[1719843882882,0.001,62856.0,62855.0,2.39055254]
[1719843883314,0.00597132,62871.0,62861.0,0.318157]
[1719843883510,0.00597132,62870.0,62863.0,0.01]
[1719843883718,0.01554917,62870.0,62868.0,0.159062]
[1719843884009,0.00597132,62870.0,62869.0,0.39477571]
[1719843884514,0.159053,62872.0,62869.0,0.55383571]
[1719843884515,0.00597132,62872.0,62869.0,0.55383571]
[1719843884719,0.00597132,62871.0,62870.0,0.13225712]
[1719843884856,0.00597132,62871.0,62870.0,0.29456398]
[1719843885055,0.00597132,62871.0,62870.0,0.3137812]
[1719843885258,0.16502232,62873.0,62870.0,0.31378138]
[1719843885518,0.00597132,62872.0,62871.0,0.16233898]
[1719843886293,0.16501932,62874.0,62871.0,0.16233898]
[1719843886465,0.16501932,62874.0,62872.0,0.0646321]
[1719843886665,0.00597132,62877.0,62873.0,0.32138698]
[1719843886911,0.00597132,62877.0,62874.0,0.13222247]
[1719843887060,0.00597132,62876.0,62875.0,0.29456145]
[1719843887278,0.00597132,62876.0,62875.0,0.53057206]
[1719843887741,0.00597132,62878.0,62877.0,0.15904]
[1719843888098,0.318049,62884.0,62877.0,0.15904]
[1719843888099,0.16500532,62880.0,62877.0,0.29454673]
[1719843888431,0.0772,62888.0,62879.0,0.31807]
[1719843888432,0.00597132,62883.0,62879.0,0.31807]
[1719843888629,0.00597132,62883.0,62881.0,0.159028]
[1719843888838,0.00597132,62883.0,62882.0,0.16233898]
[1719843889058,0.00597132,62883.0,62882.0,0.32116998]
[1719843891074,0.32399932,62888.0,62882.0,0.32116998]
[1719843891235,0.00597132,62890.0,62884.0,0.0661]
[1719843891450,0.159006,62891.0,62886.0,0.159016]
[1719843891663,0.16498032,62890.0,62887.0,0.23951859]
[1719843891866,0.0801,62897.0,62887.0,0.23951859]
[1719843891867,0.00597132,62894.0,62887.0,0.23951859]
[1719843892063,0.16496932,62894.0,62890.0,0.159007]
[1719843892297,0.00597132,62891.0,62890.0,0.32116998]
[1719843892521,0.159,62893.0,62890.0,0.4993942]
[1719843892754,0.00597132,62892.0,62890.0,0.4993942]
[1719843893111,0.158998,62894.0,62890.0,0.3403872]
[1719843893112,0.16497632,62891.0,62890.0,0.3403872]
[1719843893457,0.49278473,62891.0,62890.0,0.32116998]
[1719843893894,0.17477473,62891.0,62890.0,0.33016998]
[1719843894142,0.17477473,62891.0,62890.0,0.32116998]
[1719843894338,0.49278473,62891.0,62890.0,0.32116998]
[1719843894545,0.49278473,62891.0,62890.0,0.32616998]
[1719843894974,0.49278473,62891.0,62890.0,0.38240664]
[1719843895115,0.49278473,62891.0,62890.0,0.37740664]
[1719843895316,0.49278473,62891.0,62890.0,0.38540664]
[1719843895553,0.49278473,62891.0,62890.0,0.32916998]
[1719843896569,0.49278473,62891.0,62890.0,0.34116998]
[1719843897718,0.49278473,62891.0,62890.0,0.18233898]
[1719843898548,0.81079473,62891.0,62890.0,0.18233898]
[1719843898674,0.81163473,62891.0,62890.0,0.18233898]
[1719843899763,0.81163473,62891.0,62890.0,0.02]
[1719843899764,1.13964473,62891.0,62890.0,0.02]
[1719843899934,1.22114473,62891.0,62890.0,0.02]
[1719843900135,1.27624473,62891.0,62890.0,0.02]
[1719843901158,1.28624473,62891.0,62890.0,0.02]
[1719843901777,1.60425473,62891.0,62890.0,0.02]
[1719843902383,1.28624473,62891.0,62890.0,0.02]
[1719843902603,1.27624473,62891.0,62890.0,0.02]
[1719843902796,1.12964473,62891.0,62890.0,0.02]
[1719843903302,0.01660973,62891.0,62890.0,0.18233898]
[1719843903522,0.01660973,62891.0,62890.0,0.24686648]
[1719843903755,0.17561473,62891.0,62890.0,0.24686648]
[1719843903901,0.16581632,62891.0,62890.0,0.24686648]
[1719843904102,0.01067348,62891.0,62890.0,0.26986648]
[1719843904302,0.0166448,62891.0,62890.0,0.26986648]
[1719843905890,0.01067348,62891.0,62890.0,0.74688848]
[1719843906291,0.00084,62891.0,62890.0,0.74688848]
[1719843907304,0.00084,62891.0,62890.0,0.75688848]
[1719843907659,0.00084,62891.0,62890.0,1.07490348]
[1719843908011,0.00084,62891.0,62890.0,1.06490348]
[1719843908364,0.00084,62891.0,62890.0,1.21770348]
[1719843908500,0.00084,62891.0,62890.0,1.20770348]
[1719843908704,0.00084,62891.0,62890.0,1.21770348]
[1719843909376,0.00084,62891.0,62890.0,1.19570348]
[1719843909842,0.00084,62891.0,62890.0,1.20570348]
[1719843910006,0.00084,62891.0,62890.0,1.21170348]
[1719843910229,0.00084,62891.0,62890.0,1.52971848]
[1719843910419,0.00084,62891.0,62890.0,1.54371848]
[1719843911204,0.00084,62891.0,62890.0,1.21570348]
[1719843911950,0.16581632,62891.0,62890.0,0.21333898]
[1719843912157,0.16581632,62891.0,62890.0,0.19033898]
[1719843912374,0.01065648,62891.0,62890.0,0.66736098]
[1719843912564,0.01065648,62891.0,62890.0,1.12927598]
[1719843912726,0.00084,62891.0,62890.0,1.24320358]
[1719843913363,0.00084,62891.0,62890.0,1.26620358]
[1719843913773,0.00084,62891.0,62890.0,1.27620358]
[1719843913967,0.00084,62891.0,62890.0,1.59421858]
[1719843914947,0.00084,62891.0,62890.0,1.89421858]
[1719843915173,0.00084,62891.0,62890.0,2.54438004]
[1719843915515,0.00084,62891.0,62890.0,2.41223358]
[1719843915677,0.00084,62891.0,62890.0,2.744374]
[1719843915888,0.00084,62891.0,62890.0,2.81044231]
[1719843916087,0.00084,62891.0,62890.0,3.12845731]
[1719843916257,0.00084,62891.0,62890.0,3.11445731]
[1719843916671,0.00084,62891.0,62890.0,3.11545731]
[1719843916911,0.317876,62918.0,62890.0,3.11545731]
[1719843916912,0.0628,62922.0,62912.0,0.0636]
[1719843917257,0.317839,62925.0,62917.0,0.158938]
[1719843917258,0.15893,62921.0,62917.0,0.158938]
[1719843917384,0.15893,62921.0,62918.0,0.16233898]
[1719843917385,0.00951281,62920.0,62918.0,0.16233898]
[1719843917588,0.00951281,62920.0,62919.0,0.023]
[1719843917789,0.00951281,62920.0,62919.0,0.34416998]
[1719843917998,0.00951281,62920.0,62919.0,0.45805748]
[1719843917999,0.00597132,62920.0,62919.0,0.45805748]
[1719843918610,0.01556765,62920.0,62919.0,0.45805748]
[1719843918836,0.16490232,62920.0,62919.0,0.45805748]
[1719843919054,0.17449865,62920.0,62919.0,0.45805748]
[1719843920333,1.27208765,62920.0,62919.0,0.166831]
[1719843921324,1.27208765,62920.0,62919.0,0.170831]
[1719843921529,1.27208765,62920.0,62919.0,0.174831]
[1719843921739,1.27208765,62920.0,62919.0,0.162831]
[1719843921740,1.25579748,62920.0,62919.0,0.162831]
[1719843921951,1.25579748,62920.0,62919.0,0.1791141]
[1719843922155,0.93793448,62920.0,62919.0,0.1831141]
[1719843922565,0.93793448,62920.0,62919.0,0.1871141]
[1719843922970,0.93793448,62920.0,62919.0,0.0282831]
[1719843923141,0.93793448,62920.0,62919.0,0.012]
[1719843923345,0.95793448,62920.0,62919.0,0.012]
[1719843923565,0.93793448,62920.0,62919.0,0.012]
[1719843925464,0.79393448,62920.0,62919.0,0.012]
[1719843927135,0.00959633,62920.0,62919.0,0.35227298]
[1719843927313,0.00959633,62920.0,62919.0,0.19333898]
[1719843927448,0.158928,62922.0,62919.0,0.18933898]
[1719843927656,0.00992505,62921.0,62920.0,0.18533898]
[1719843927875,0.16885405,62921.0,62920.0,0.18533898]
[1719843928287,0.158931,62920.0,62919.0,0.158831]
[1719843928487,0.48671145,62920.0,62919.0,0.34116998]
[1719843928748,0.80457445,62920.0,62919.0,0.32916998]
[1719843928949,0.80457445,62920.0,62919.0,0.32116998]
[1719843930315,1.28433745,62920.0,62919.0,0.158831]
[1719843930923,1.26433745,62920.0,62919.0,0.158831]
[1719843931152,1.28433745,62920.0,62919.0,0.164831]
[1719843931346,1.26433745,62920.0,62919.0,0.164831]
[1719843931547,1.28433745,62920.0,62919.0,0.158831]
[1719843931776,1.51063745,62920.0,62919.0,0.158831]
[1719843931971,1.28433745,62920.0,62919.0,0.158831]
[1719843932154,1.28433745,62920.0,62919.0,0.161831]
[1719843932558,1.28433745,62920.0,62919.0,0.158831]
[1719843933600,0.317912,62911.0,62901.0,0.158979]
[1719843933807,0.158967,62906.0,62902.0,0.18533898]
[1719843933986,0.158972,62904.0,62902.0,0.18533898]
[1719843934188,0.02,62914.0,62902.0,0.18533898]
[1719843934189,0.476923,62903.0,62902.0,0.18533898]
[1719843934368,0.48681938,62903.0,62902.0,0.18533898]
[1719843934927,0.48681938,62903.0,62902.0,0.24989488]
[1719843935290,0.48681938,62903.0,62902.0,0.26389488]
[1719843935495,0.48681938,62903.0,62902.0,0.27789488]
[1719843935840,0.48681938,62903.0,62902.0,0.26389488]
[1719843936250,0.48681938,62903.0,62902.0,0.27789488]
[1719843936808,1.12271738,62903.0,62902.0,0.028]
[1719843937329,1.14271738,62903.0,62902.0,0.028]
[1719843937735,1.12271738,62903.0,62902.0,0.028]
[1719843938159,0.48681938,62903.0,62902.0,0.19033898]
[1719843938411,0.48681938,62903.0,62902.0,0.22525598]
[1719843938572,0.80476838,62903.0,62902.0,0.19725598]
[1719843939389,0.80476838,62903.0,62902.0,0.16233898]
[1719843939597,0.80476838,62903.0,62902.0,0.16633898]
[1719843939999,0.48681938,62903.0,62902.0,0.16633898]
[1719843940159,0.82476838,62903.0,62902.0,0.18233898]
[1719843940351,0.82476838,62903.0,62902.0,0.02]
[1719843940352,1.20301738,62903.0,62902.0,0.02]
[1719843940596,2.02886638,62903.0,62902.0,0.02]
[1719843941005,1.82886638,62903.0,62902.0,0.02]
[1719843941401,2.02886638,62903.0,62902.0,0.016]
[1719843941714,2.34681538,62903.0,62876.0,0.1409]
[1719843941899,0.159039,62878.0,62877.0,0.16233898]
[1719843942025,0.477115,62878.0,62877.0,0.16228414]
[1719843942230,0.80465598,62878.0,62877.0,0.16228414]
[1719843942505,0.80465598,62878.0,62877.0,0.19439565]
[1719843943090,0.80465598,62878.0,62876.0,0.158831]
[1719843943091,1.113283,62877.0,62876.0,0.158831]
[1719843943303,1.14271877,62877.0,62876.0,0.158831]
[1719843944889,1.46079977,62877.0,62876.0,0.158831]
[1719843945470,1.46079977,62877.0,62876.0,0.163831]
[1719843945794,1.46079977,62877.0,62876.0,0.158831]
[1719843946157,1.46079977,62877.0,62876.0,0.164831]
[1719843948456,1.46079977,62877.0,62876.0,0.006]
[1719843948762,1.46079977,62877.0,62876.0,0.005]
[1719843948974,0.159081,62861.0,62860.0,0.0618]
[1719843949169,0.159081,62861.0,62860.0,0.48480366]
[1719843949912,0.159081,62861.0,62860.0,0.32116998]
[1719843949913,0.795405,62861.0,62860.0,0.32116998]
[1719843950173,0.795405,62861.0,62860.0,0.158831]
[1719843950174,1.12292369,62861.0,62860.0,0.158831]
[1719843950378,1.14292369,62861.0,62860.0,0.158831]
[1719843950614,1.14292369,62861.0,62860.0,0.172831]
[1719843950923,1.12292369,62861.0,62860.0,0.172831]
[1719843951348,0.80476169,62861.0,62860.0,0.35337598]
[1719843951554,0.48659969,62861.0,62860.0,0.35337598]
[1719843951904,0.16843769,62861.0,62860.0,0.41617598]
[1719843952052,0.16843769,62861.0,62860.0,0.43917598]
[1719843952053,0.48659969,62861.0,62860.0,0.43917598]
[1719843954288,0.48659969,62861.0,62860.0,0.28034498]
[1719843955298,1.12292369,62861.0,62860.0,0.014]
[1719843955500,1.14292369,62861.0,62860.0,0.014]
[1719843956607,1.12292369,62861.0,62860.0,0.014]
[1719843956984,0.795455,62857.0,62856.0,0.009229]
[1719843957186,1.113637,62857.0,62856.0,0.33039898]
[1719843957501,1.12290147,62857.0,62856.0,0.16806]
[1719843958124,1.14290147,62857.0,62856.0,0.16806]
[1719843958713,1.12290147,62857.0,62856.0,0.16306]
[1719843958910,1.14290147,62857.0,62856.0,0.16306]
[1719843959112,1.113724,62852.0,62851.0,0.009229]
[1719843959364,1.113724,62852.0,62851.0,0.16806]
[1719843959365,1.12296937,62852.0,62851.0,0.16806]
[1719843959619,1.12296937,62852.0,62851.0,0.1857889]
[1719843960236,0.80476237,62852.0,62851.0,0.1857889]
[1719843960446,0.48655537,62852.0,62851.0,0.48852788]
[1719843960652,0.80476237,62852.0,62851.0,0.50252788]
[1719843961059,0.80476237,62852.0,62851.0,0.51652788]
[1719843961423,0.48655537,62852.0,62851.0,0.51652788]
[1719843961982,0.16834837,62852.0,62851.0,0.51652788]
[1719843962181,0.48655537,62852.0,62851.0,0.51652788]
[1719843962358,0.16834837,62852.0,62851.0,0.51652788]
[1719843962578,0.00924537,62852.0,62851.0,0.51652788]
[1719843962784,0.00924537,62852.0,62851.0,0.53952788]
[1719843962987,0.00924537,62852.0,62851.0,1.03684588]
[1719843963237,0.1607,62869.0,62851.0,0.53952788]
[1719843963238,0.318153,62863.0,62851.0,0.53952788]
[1719843963422,0.159086,62859.0,62852.0,0.56042167]
[1719843963627,0.159086,62859.0,62854.0,0.159096]
[1719843963925,0.159086,62859.0,62855.0,0.34443398]
[1719843964224,0.00919951,62858.0,62855.0,0.34443398]
[1719843964469,0.00919951,62858.0,62855.0,0.18533898]
[1719843964672,0.47728,62856.0,62855.0,0.16233898]
[1719843964864,0.795467,62856.0,62855.0,0.16233898]
[1719843964992,0.80469199,62856.0,62855.0,0.16233898]
[1719843965396,1.12287899,62856.0,62855.0,0.16233898]
[1719843965649,1.14287899,62856.0,62855.0,0.16233898]
[1719843965785,1.14287899,62856.0,62855.0,0.16933898]
[1719843966249,1.14287899,62856.0,62855.0,0.007]
[1719843966389,1.14287899,62856.0,62855.0,0.02]
[1719843966390,1.12287899,62856.0,62855.0,0.02]
[1719843967005,1.14287899,62856.0,62855.0,0.02]
[1719843967209,1.14287899,62856.0,62855.0,0.013]
[1719843967419,1.12287899,62856.0,62855.0,0.013924]
[1719843967647,1.12287899,62856.0,62855.0,0.022924]
[1719843967850,1.14287899,62856.0,62855.0,0.022924]
[1719843968048,1.20667899,62856.0,62855.0,0.022924]
[1719843969928,1.12287899,62856.0,62855.0,0.0429453]
[1719843970144,0.48650499,62856.0,62855.0,0.18526298]
[1719843970965,0.00922499,62856.0,62855.0,0.18526298]
[1719843971509,0.16831799,62856.0,62855.0,0.18526298]
[1719843971723,0.16831799,62856.0,62855.0,0.26781698]
[1719843971724,0.00922499,62856.0,62855.0,0.26781698]
[1719843971924,0.00922499,62856.0,62855.0,0.4996102]
[1719843972131,0.159085,62860.0,62855.0,0.4996102]
[1719843972341,0.00921515,62856.0,62855.0,0.842543]
[1719843972548,0.0778,62876.0,62855.0,0.842543]
[1719843972549,0.02084,62877.0,62865.0,0.0645]
[1719843972759,0.318099,62874.0,62865.0,0.223331]
[1719843972971,0.159053,62872.0,62867.0,0.159064]
[1719843973176,0.00084,62877.0,62866.0,0.23122968]
[1719843973177,0.159061,62869.0,62868.0,0.33767729]
[1719843973404,0.159058,62870.0,62868.0,0.29456866]
[1719843973598,0.318104,62873.0,62869.0,0.13222283]
[1719843973599,0.318102,62873.0,62869.0,0.13222283]
[1719843973803,0.318102,62873.0,62870.0,0.20544761]
[1719843973937,0.159056,62871.0,62870.0,0.20544761]
[1719843974347,0.159048,62874.0,62870.0,0.20544761]
[1719843974547,0.318093,62875.0,62871.0,0.023]
[1719843974752,0.159053,62872.0,62871.0,0.023]
[1719843974975,0.318111,62871.0,62866.0,0.076]
[1719843975170,0.159058,62870.0,62867.0,0.15522393]
[1719843975503,0.159058,62870.0,62867.0,0.023]
[1719843975841,0.159058,62870.0,62868.0,0.16233898]
[1719843976059,0.159058,62870.0,62869.0,0.023]
[1719843976286,0.159058,62870.0,62869.0,0.18533898]
[1719843976461,0.477174,62870.0,62869.0,0.18533898]
[1719843976862,0.79529,62870.0,62869.0,0.16233898]
[1719843977516,0.318126,62868.0,62865.0,0.158831]
[1719843977707,0.159068,62866.0,62865.0,0.158831]
[1719843978068,0.477204,62866.0,62865.0,0.158831]
[1719843979468,0.477204,62866.0,62865.0,0.32116998]
[1719843979888,0.477204,62866.0,62865.0,0.32916998]
[1719843980152,0.477204,62866.0,62865.0,0.33316998]
[1719843980773,0.159068,62866.0,62865.0,0.33316998]
[1719843980994,0.159059,62870.0,62866.0,0.159068]
[1719843981200,0.318091,62875.0,62867.0,0.18533898]
[1719843981400,0.159054,62872.0,62868.0,0.297262]
[1719843981607,0.318091,62875.0,62869.0,0.32139898]
[1719843981812,0.00084,62877.0,62873.0,0.15905]
[1719843981941,0.00084,62877.0,62874.0,0.16233898]
[1719843982361,0.159881,62877.0,62874.0,0.16233898]
[1719843982762,0.159044,62876.0,62874.0,0.16233898]
[1719843982957,0.159045,62875.0,62874.0,0.16233898]
[1719843983148,0.159045,62875.0,62874.0,0.16633898]
[1719843983350,0.16837391,62875.0,62874.0,0.16633898]
[1719843984274,0.00932891,62875.0,62874.0,0.17933898]
[1719843984595,0.00084,62877.0,62874.0,0.56715748]
[1719843984838,0.00084,62877.0,62876.0,0.477129]
[1719843985023,0.00084,62877.0,62876.0,0.16233898]
[1719843985994,0.477961,62877.0,62876.0,0.16233898]
[1719843986256,0.796042,62877.0,62876.0,0.16233898]
[1719843986472,0.159048,62874.0,62873.0,0.158831]
[1719843986614,0.81524,62874.0,62873.0,0.158831]
[1719843987023,1.113336,62874.0,62873.0,0.158831]
[1719843987576,1.133336,62874.0,62873.0,0.158831]
[1719843987916,1.113336,62874.0,62873.0,0.172831]
[1719843989412,0.79524,62874.0,62873.0,0.172831]
[1719843989611,0.79524,62874.0,62873.0,0.35245308]
[1719843989612,0.159048,62874.0,62873.0,0.35245308]
[1719843989927,0.159048,62874.0,62873.0,0.34245308]
[1719843989928,0.477144,62874.0,62873.0,0.34245308]
[1719843990126,0.477144,62874.0,62873.0,0.35045308]
[1719843990659,0.477144,62874.0,62873.0,0.33845308]
[1719843990807,0.159048,62874.0,62873.0,0.34645308]
[1719843991007,0.159044,62876.0,62873.0,0.34645308]
[1719843991215,0.159044,62876.0,62873.0,0.33845308]
[1719843991413,0.159044,62876.0,62874.0,0.09681241]
[1719843991826,0.159048,62874.0,62873.0,0.33116998]
[1719843992265,0.159048,62874.0,62873.0,0.33516998]
[1719843992479,0.79524,62874.0,62873.0,0.33516998]
[1719843992684,0.79524,62874.0,62873.0,0.33116998]
[1719843992877,0.477144,62874.0,62873.0,0.33116998]
[1719843993032,0.477144,62874.0,62873.0,0.32716998]
[1719843993234,0.477144,62874.0,62873.0,0.33516998]
[1719843993415,0.00084,62877.0,62873.0,0.38459298]
[1719843993618,0.00084,62877.0,62874.0,0.16233898]
[1719843993823,0.159046,62875.0,62874.0,0.16233898]
[1719843994077,0.477137,62875.0,62874.0,0.16233898]
[1719843994282,0.477137,62875.0,62873.0,0.168831]
[1719843994283,0.79524,62874.0,62873.0,0.168831]
[1719843994482,0.85534,62874.0,62873.0,0.158831]
[1719843994704,0.85534,62874.0,62873.0,0.164831]
[1719843995076,0.85534,62874.0,62873.0,0.1813141]
[1719843995273,0.85534,62874.0,62873.0,0.164831]
[1719843995476,0.79524,62874.0,62873.0,0.164831]
[1719843995691,1.193436,62874.0,62873.0,0.164831]
[1719843996093,1.193436,62874.0,62873.0,0.158831]
[1719843996290,1.193436,62874.0,62873.0,0.164831]
[1719843996887,1.193436,62874.0,62873.0,0.158831]
[1719843997091,1.193436,62874.0,62873.0,0.166831]
[1719843997403,1.193436,62874.0,62873.0,0.162831]
[1719843997603,1.193436,62874.0,62873.0,0.170831]
[1719843998020,1.173436,62874.0,62873.0,0.170831]
[1719843998370,1.193436,62874.0,62873.0,0.170831]
[1719843998499,1.20274812,62874.0,62873.0,0.170831]
[1719843999108,1.52084412,62874.0,62873.0,0.170831]
[1719843999526,1.52084412,62874.0,62873.0,0.012]
[1719843999527,1.20274812,62874.0,62873.0,0.012]
[1719843999739,1.18274812,62874.0,62873.0,0.012]
[1719843999981,0.80455212,62874.0,62873.0,0.012]
[1719844000820,0.00931212,62874.0,62873.0,0.65148998]
[1719844000967,0.00931212,62874.0,62873.0,1.77157098]
[1719844001126,0.00084,62877.0,62876.0,0.477129]
[1719844001347,0.00084,62877.0,62876.0,1.30438498]
[1719844001980,0.00084,62877.0,62876.0,1.62247098]
[1719844002186,0.00084,62877.0,62876.0,1.72247098]
[1719844002403,0.00084,62877.0,62876.0,1.80192091]
[1719844003975,0.00084,62877.0,62876.0,1.81592091]
[1719844004176,0.00084,62877.0,62876.0,1.80192091]
[1719844004932,0.00084,62877.0,62876.0,1.81592091]
[1719844005253,0.00084,62877.0,62876.0,1.82992091]
[1719844006176,0.00084,62877.0,62876.0,1.80992091]
[1719844006379,0.00084,62877.0,62876.0,1.65108991]
[1719844007173,0.00084,62877.0,62876.0,1.63708991]
[1719844007381,0.00084,62877.0,62876.0,1.65108991]
[1719844007841,0.00084,62877.0,62876.0,0.43538198]
[1719844008214,0.00084,62877.0,62876.0,1.08555398]
[1719844008615,0.00084,62877.0,62876.0,1.42363998]
[1719844008830,0.00084,62877.0,62876.0,1.56873998]
[1719844009115,0.00084,62877.0,62876.0,1.59173998]
[1719844009524,0.0005317,62877.0,62876.0,1.59173998]
[1719844010360,0.0005317,62877.0,62876.0,1.57173998]
[1719844010579,0.0005317,62877.0,62876.0,1.25365398]
[1719844010776,0.0005317,62877.0,62876.0,1.31734498]
[1719844011036,0.0005317,62877.0,62876.0,1.33734498]
[1719844011392,0.0005317,62877.0,62876.0,1.31734498]
[1719844012074,0.0005317,62877.0,62876.0,1.33734498]
[1719844013301,0.0005317,62877.0,62876.0,1.31734498]
[1719844014455,0.0005317,62877.0,62876.0,0.79046798]
[1719844014692,0.0005317,62877.0,62876.0,0.19033898]
[1719844014693,0.1595717,62877.0,62876.0,0.19033898]
[1719844015070,0.48581288,62877.0,62876.0,0.19033898]
[1719844015653,0.48581288,62877.0,62876.0,0.17633898]
[1719844016016,0.48581288,62877.0,62876.0,0.20797288]
[1719844016168,0.80389388,62877.0,62876.0,0.20797288]
[1719844016331,0.82389388,62877.0,62876.0,0.028]
[1719844016735,1.14197488,62877.0,62876.0,0.028]
[1719844017141,1.14197488,62877.0,62876.0,0.014]
[1719844017380,1.12197488,62877.0,62876.0,0.014]
[1719844017605,1.14197488,62877.0,62876.0,0.014]
[1719844018271,1.14197488,62877.0,62876.0,0.028]
[1719844018421,1.28067488,62877.0,62876.0,0.028]
[1719844018970,1.28067488,62877.0,62863.0,0.159076]
[1719844018971,0.159065,62868.0,62863.0,0.159076]
[1719844019104,0.159065,62868.0,62864.0,0.18533898]
[1719844019305,0.16722781,62867.0,62864.0,0.18533898]
[1719844019529,0.159063,62868.0,62864.0,0.18533898]
[1719844019742,0.008159,62866.0,62864.0,0.34441198]
[1719844019908,0.159063,62868.0,62865.0,0.144]
[1719844020120,0.159063,62868.0,62866.0,0.18533898]
[1719844020516,0.1392317,62877.0,62866.0,0.18533898]
[1719844020517,0.3181,62874.0,62866.0,0.18533898]
[1719844020744,0.3181,62874.0,62866.0,0.34440598]
[1719844020745,0.159056,62871.0,62866.0,0.34440598]
[1719844020946,0.3181,62874.0,62867.0,0.01702893]
[1719844021120,0.318109,62872.0,62868.0,0.18533898]
[1719844021443,0.159056,62871.0,62868.0,0.18533898]
[1719844021643,0.159049,62874.0,62869.0,0.22701679]
[1719844021850,0.159053,62872.0,62870.0,0.18533898]
[1719844022046,0.318092,62875.0,62870.0,0.34416998]
[1719844022250,0.159052,62873.0,62870.0,0.34416998]
[1719844023540,0.159054,62872.0,62870.0,0.34416998]
[1719844023759,0.159055,62871.0,62870.0,0.34416998]
[1719844023942,0.159055,62871.0,62870.0,0.32116998]
[1719844023943,0.795277,62871.0,62870.0,0.32116998]
[1719844024142,0.934077,62871.0,62870.0,0.33516998]
[1719844024370,0.934077,62871.0,62870.0,0.37038987]
[1719844024929,0.934077,62871.0,62870.0,0.186831]
[1719844024930,1.252188,62871.0,62870.0,0.186831]
[1719844025744,1.252188,62871.0,62870.0,0.158831]
[1719844025948,0.159055,62871.0,62870.0,0.33516998]
[1719844026152,0.0821317,62877.0,62874.0,0.159045]
[1719844026153,0.0005317,62877.0,62874.0,0.159045]
[1719844026369,0.0005317,62877.0,62875.0,0.16233898]
[1719844026578,0.0005317,62877.0,62876.0,0.023]
[1719844026781,0.00862665,62877.0,62876.0,0.34438198]
[1719844027223,0.00862665,62877.0,62876.0,0.66246798]
[1719844027415,0.0005317,62877.0,62876.0,0.47189391]
[1719844027630,0.00862665,62877.0,62876.0,0.31285091]
[1719844027825,0.0005317,62877.0,62876.0,0.31285091]
[1719844027981,0.00862665,62877.0,62876.0,0.31285091]
[1719844028803,0.00862665,62877.0,62876.0,0.47189391]
[1719844030127,0.00862665,62877.0,62876.0,0.48489391]
[1719844031390,0.00862665,62877.0,62876.0,0.80297991]
[1719844031557,0.00862665,62877.0,62876.0,0.82297991]
[1719844031756,0.00862665,62877.0,62876.0,0.48489391]
[1719844031757,0.0005317,62877.0,62876.0,0.48489391]
[1719844032336,0.0005317,62877.0,62876.0,0.18433898]
[1719844032548,0.1595717,62877.0,62876.0,0.18433898]
[1719844032699,0.16766665,62877.0,62876.0,0.18433898]
[1719844033088,0.48574765,62877.0,62876.0,0.18433898]
[1719844034528,1.26350965,62877.0,62876.0,0.022]
[1719844034735,1.28350965,62877.0,62876.0,0.022]
[1719844035876,0.94542865,62877.0,62876.0,0.022]
[1719844036310,1.28350965,62877.0,62876.0,0.022]
[1719844037262,1.69686071,62877.0,62876.0,0.022]
[1719844037656,1.28350965,62877.0,62876.0,0.022]
[1719844037826,1.37877971,62877.0,62876.0,0.022]
[1719844038563,1.80159065,62877.0,62876.0,0.022]
[1719844038785,1.90159065,62877.0,62876.0,0.022]
[1719844039007,2.1148152,62877.0,62876.0,0.013]
[1719844039891,2.1148152,62877.0,62860.0,0.4716]
[1719844039892,1.133567,62861.0,62860.0,0.4716]
[1719844040089,0.639943,62861.0,62860.0,0.158831]
[1719844040271,0.94615218,62861.0,62860.0,0.158831]
[1719844040472,1.26431418,62861.0,62860.0,0.158831]
[1719844041288,1.26431418,62861.0,62860.0,0.1748989]
[1719844041667,1.26731418,62861.0,62860.0,0.1748989]
[1719844042082,0.80645218,62861.0,62860.0,0.1748989]
[1719844042726,0.80645218,62861.0,62860.0,0.1878989]
[1719844043365,0.80345218,62861.0,62860.0,0.1748989]
[1719844043650,0.80345218,62861.0,62860.0,0.1798989]
[1719844043848,1.12161418,62861.0,62860.0,0.163831]
[1719844044234,1.29001418,62861.0,62860.0,0.165831]
[1719844044399,1.29001418,62861.0,62860.0,0.160831]
[1719844044400,1.60817618,62861.0,62860.0,0.160831]
[1719844044842,1.60817618,62861.0,62860.0,0.167831]
[1719844045266,1.133637,62857.0,62855.0,0.000924]
[1719844045494,1.133637,62857.0,62856.0,0.159755]
[1719844045694,1.14163648,62857.0,62856.0,0.159755]
[1719844047890,1.14163648,62857.0,62856.0,0.167755]
[1719844048433,1.14163648,62857.0,62856.0,0.179755]
[1719844049139,1.60271848,62857.0,62856.0,0.179755]
[1719844050614,1.80271848,62857.0,62856.0,0.012924]
[1719844050944,1.80371848,62857.0,62856.0,0.000924]
[1719844051144,1.80371848,62857.0,62856.0,0.003924]
[1719844051767,1.60371848,62857.0,62856.0,0.003924]
[1719844052882,1.12263648,62857.0,62856.0,0.003924]
[1719844053197,0.48627248,62857.0,62856.0,0.003924]
[1719844053404,0.48627248,62857.0,62856.0,0.0197217]
[1719844053654,0.80445448,62857.0,62856.0,0.0197217]
[1719844054486,0.00899948,62857.0,62856.0,0.0167217]
[1719844054654,0.00899948,62857.0,62856.0,0.73424068]
[1719844054655,0.00799948,62857.0,62856.0,0.73424068]
[1719844054820,0.31814,62866.0,62858.0,0.159088]
[1719844055023,0.159073,62864.0,62859.0,0.24288495]
[1719844055259,0.00792935,62863.0,62859.0,0.24288495]
[1719844055666,0.00792935,62863.0,62860.0,0.0663]